bitfinex/quotes_BTCUSD_20241111
["timestamp","ask_amount","ask_price","bid_price","bid_amount"]
[1731295598304,0.023,81101.0,81084.0,0.0493]
[1731295598512,0.023,81101.0,81098.0,0.098645]
[1731295599768,0.023,81101.0,81095.0,0.197298]
[1731295599769,0.20721521,81103.0,81095.0,0.098648]
[1731295599979,0.43179742,81103.0,81095.0,0.098648]
[1731295600209,0.098641,81102.0,81095.0,0.098648]
[1731295600419,0.098644,81099.0,81087.0,0.197316]
[1731295600620,0.023,81098.0,81087.0,0.197316]
[1731295600861,0.023,81098.0,81091.0,0.098653]
[1731295600862,0.121646,81098.0,81091.0,0.098653]
[1731295601040,0.121646,81098.0,81072.0,0.005]
[1731295601041,0.023,81093.0,81085.0,0.098661]
[1731295601477,0.023,81093.0,81083.0,0.000842]
[1731295601705,0.023,81089.0,81083.0,0.099505]
[1731295601904,0.023,81089.0,81084.0,0.098662]
[1731295602149,0.023,81092.0,81084.0,0.098662]
[1731295602370,0.023,81089.0,81083.0,0.000842]
[1731295602586,0.098663,81084.0,81083.0,0.000842]
[1731295602858,0.24760521,81084.0,81083.0,0.000842]
[1731295603291,0.29450521,81084.0,81083.0,0.000842]
[1731295603491,0.47740521,81084.0,81083.0,0.000842]
[1731295603737,0.4880595,81084.0,81083.0,0.000842]
[1731295604257,0.61400171,81084.0,81083.0,0.000842]
[1731295604451,0.4880595,81084.0,81083.0,0.000842]
[1731295606219,0.5020595,81084.0,81083.0,0.001842]
[1731295606425,0.5160595,81084.0,81083.0,0.002842]
[1731295606636,0.64200171,81084.0,81083.0,0.002842]
[1731295606839,0.5020595,81084.0,81083.0,0.001842]
[1731295607259,0.5160595,81084.0,81083.0,0.002842]
[1731295608586,0.4411595,81084.0,81083.0,0.002842]
[1731295608785,0.15394221,81084.0,81083.0,0.002842]
[1731295609226,0.25260521,81084.0,81083.0,0.002842]
[1731295609508,0.25260521,81084.0,81083.0,0.001842]
[1731295609509,0.23860521,81084.0,81083.0,0.001842]
[1731295609707,0.22460521,81084.0,81083.0,0.000842]
[1731295610125,0.24760521,81084.0,81083.0,0.000842]
[1731295610385,0.25260521,81084.0,81083.0,0.000842]
[1731295611873,0.35260521,81084.0,81083.0,0.000842]
[1731295612293,0.42900521,81084.0,81083.0,0.000842]
[1731295612503,0.43000521,81084.0,81083.0,0.000842]
[1731295612928,0.42900521,81084.0,81083.0,0.000842]
[1731295613139,0.54372255,81084.0,81083.0,0.000842]
[1731295613343,0.54472255,81084.0,81083.0,0.000842]
[1731295613557,0.54272255,81084.0,81083.0,0.000842]
[1731295613761,0.43000521,81084.0,81083.0,0.000842]
[1731295614865,0.42900521,81084.0,81083.0,0.000842]
[1731295625448,0.44044036,81084.0,81083.0,0.000842]
[1731295625792,0.42900521,81084.0,81083.0,0.000842]
[1731295626286,0.22460521,81084.0,81083.0,0.000842]
[1731295627501,0.24760521,81084.0,81083.0,0.000842]
[1731295630065,0.38738979,81084.0,81083.0,0.000842]
[1731295630265,0.39885171,81084.0,81083.0,0.000842]
[1731295630466,0.39885393,81084.0,81083.0,0.000842]
[1731295632271,0.50629713,81084.0,81083.0,0.000842]
[1731295632473,0.39886754,81084.0,81083.0,0.000842]
[1731295633307,0.58766754,81084.0,81083.0,0.000842]
[1731295633677,0.58766754,81084.0,81071.0,0.001394]
[1731295633678,0.098677,81072.0,81071.0,0.001394]
[1731295633880,0.38740379,81072.0,81071.0,0.001394]
[1731295634120,0.39888154,81072.0,81071.0,0.001394]
[1731295634527,0.25909696,81072.0,81071.0,0.001394]
[1731295634907,0.39240379,81072.0,81071.0,0.001394]
[1731295635110,0.40388154,81072.0,81071.0,0.001394]
[1731295635307,0.50388154,81072.0,81071.0,0.001394]
[1731295635982,0.49240379,81072.0,81071.0,0.001394]
[1731295636188,0.50388335,81072.0,81071.0,0.001394]
[1731295637580,0.5145099,81072.0,81071.0,0.001394]
[1731295639535,0.50303034,81072.0,81071.0,0.001394]
[1731295639710,0.51449674,81072.0,81071.0,0.001394]
[1731295640057,0.5144962,81072.0,81071.0,0.001394]
[1731295640360,0.34671162,81072.0,81071.0,0.080994]
[1731295640544,0.32461921,81072.0,81071.0,0.001394]
[1731295640760,0.33608322,81072.0,81071.0,0.001394]
[1731295640971,0.43193586,81072.0,81071.0,0.001394]
[1731295641871,0.45493586,81072.0,81071.0,0.001394]
[1731295642220,0.49144604,81072.0,81071.0,0.001394]
[1731295642429,0.36408322,81072.0,81071.0,0.001394]
[1731295643186,0.37505895,81072.0,81071.0,0.001394]
[1731295643413,0.41156913,81072.0,81071.0,0.001394]
[1731295644394,0.37505895,81072.0,81071.0,0.001394]
[1731295644796,0.34705895,81072.0,81071.0,0.001394]
[1731295645035,0.33608322,81072.0,81071.0,0.001394]
[1731295646365,0.37276126,81072.0,81071.0,0.001394]
[1731295646709,0.39576126,81072.0,81071.0,0.001394]
[1731295646929,0.38429725,81072.0,81071.0,0.001394]
[1731295647350,0.3843086,81072.0,81071.0,0.001394]
[1731295648262,0.2856316,81072.0,81071.0,0.001394]
[1731295648886,0.3843086,81072.0,81071.0,0.001394]
[1731295649813,0.38432766,81072.0,81071.0,0.001394]
[1731295650018,0.24894221,81072.0,81071.0,0.001394]
[1731295650169,0.34761921,81072.0,81071.0,0.001394]
[1731295655093,0.24894221,81072.0,81071.0,0.001394]
[1731295655564,0.34761921,81072.0,81071.0,0.001394]
[1731295655791,0.24894221,81072.0,81071.0,0.001394]
[1731295656637,0.34761921,81072.0,81071.0,0.001394]
[1731295656840,0.24894221,81072.0,81071.0,0.001394]
[1731295657864,0.34761921,81072.0,81071.0,0.001394]
[1731295658065,0.4025277,81072.0,81071.0,0.001394]
[1731295658627,0.35261921,81072.0,81071.0,0.001394]
[1731295659180,0.40080817,81072.0,81071.0,0.001394]
[1731295659387,0.36409735,81072.0,81071.0,0.001394]
[1731295659634,0.40080817,81072.0,81071.0,0.001394]
[1731295660429,0.40081668,81072.0,81071.0,0.001394]
[1731295661772,0.47691668,81072.0,81071.0,0.001394]
[1731295661982,0.44019735,81072.0,81071.0,0.001394]
[1731295663293,0.59410604,81072.0,81071.0,0.001394]
[1731295664066,0.66754471,81072.0,81071.0,0.001394]
[1731295664240,0.59410604,81072.0,81071.0,0.001394]
[1731295664684,0.59411343,81072.0,81071.0,0.001394]
[1731295667414,0.38248186,81072.0,81071.0,0.001394]
[1731295667551,0.36410484,81072.0,81071.0,0.001394]
[1731295667754,0.38248186,81072.0,81071.0,0.001394]
[1731295668354,0.51795174,81072.0,81071.0,0.001394]
[1731295668558,0.41427474,81072.0,81071.0,0.001394]
[1731295668785,0.23742784,81072.0,81071.0,0.081094]
[1731295669005,0.01148563,81074.0,81071.0,0.081094]
[1731295669202,0.04772314,81075.0,81071.0,0.081094]
[1731295669404,0.03670246,81075.0,81073.0,0.098675]
[1731295669608,0.03670246,81075.0,81074.0,0.098675]
[1731295670188,0.03670246,81075.0,81072.0,0.197353]
[1731295670189,0.09175616,81081.0,81080.0,0.098667]
[1731295670372,0.09175616,81081.0,81071.0,0.081094]
[1731295670571,0.12594221,81080.0,81078.0,0.098669]
[1731295671012,0.09175616,81081.0,81074.0,0.19735]
[1731295671215,0.09175616,81081.0,81079.0,0.098669]
[1731295671216,0.023,81080.0,81079.0,0.098669]
[1731295671414,0.023,81082.0,81081.0,0.098666]
[1731295672016,0.023,81082.0,81081.0,0.229366]
[1731295673264,0.001684,81083.0,81081.0,0.1307]
[1731295673469,0.001684,81083.0,81082.0,0.098665]
[1731295674711,0.001684,81083.0,81082.0,0.229365]
[1731295678598,0.001684,81083.0,81082.0,0.60455797]
[1731295678814,0.18421521,81114.0,81093.0,0.005]
[1731295679015,0.18421521,81114.0,81104.0,0.179538]
[1731295679388,0.18421521,81114.0,81104.0,0.228738]
[1731295679590,0.18421521,81114.0,81113.0,0.098627]
[1731295680039,0.098619,81121.0,81115.0,0.098625]
[1731295680231,0.12594221,81120.0,81116.0,0.098623]
[1731295680647,0.023,81119.0,81109.0,0.197264]
[1731295680840,0.12594221,81118.0,81117.0,0.098622]
[1731295681363,0.01102472,81125.0,81110.0,0.197262]
[1731295681579,0.098617,81122.0,81104.0,0.1301]
[1731295681781,0.098624,81116.0,81104.0,0.1301]
[1731295681913,0.098624,81116.0,81109.0,0.098632]
[1731295682107,0.098624,81116.0,81110.0,0.09863]
[1731295682350,0.13978458,81117.0,81114.0,0.098626]
[1731295682554,0.023,81116.0,81107.0,0.19727]
[1731295682785,0.023,81116.0,81106.0,0.197271]
[1731295682933,0.023,81116.0,81108.0,0.197267]
[1731295683142,0.121625,81116.0,81108.0,0.098632]
[1731295683346,0.023,81117.0,81106.0,0.197271]
[1731295683553,0.12162,81120.0,81112.0,0.098627]
[1731295683889,0.023,81114.0,81105.0,0.197275]
[1731295684091,0.023,81114.0,81111.0,0.098629]
[1731295684243,0.023,81116.0,81104.0,0.1301]
[1731295684402,0.023,81116.0,81112.0,0.098628]
[1731295685237,0.023,81116.0,81113.0,0.098627]
[1731295685866,0.023,81116.0,81112.0,0.098628]
[1731295686260,0.023,81116.0,81113.0,0.098627]
[1731295686677,0.023,81118.0,81107.0,0.19727]
[1731295686879,0.023,81118.0,81113.0,0.098627]
[1731295686880,0.14894221,81118.0,81113.0,0.098627]
[1731295687030,0.14894221,81118.0,81104.0,0.1301]
[1731295687031,0.14894221,81118.0,81117.0,0.098622]
[1731295687251,0.098613,81125.0,81123.0,0.098615]
[1731295687252,0.023,81125.0,81123.0,0.098615]
[1731295687412,0.18589921,81126.0,81104.0,0.1301]
[1731295687413,0.023,81121.0,81104.0,0.1301]
[1731295687626,0.13978458,81113.0,81097.0,0.0822]
[1731295687839,0.13978458,81113.0,81071.0,0.003394]
[1731295687840,0.220275,81105.0,81087.0,0.0459]
[1731295688040,0.12594221,81104.0,81087.0,0.0459]
[1731295688243,0.023,81092.0,81087.0,0.0459]
[1731295688471,0.023,81092.0,81090.0,0.098655]
[1731295688751,0.197294,81097.0,81090.0,0.098655]
[1731295688752,0.023,81096.0,81090.0,0.098655]
[1731295688949,0.023,81096.0,81087.0,0.144559]
[1731295688950,0.023,81094.0,81087.0,0.144559]
[1731295689152,0.023,81093.0,81088.0,0.098657]
[1731295689363,0.023,81093.0,81088.0,0.197316]
[1731295689559,0.023,81093.0,81091.0,0.098654]
[1731295689765,0.098648,81097.0,81091.0,0.098654]
[1731295690037,0.023,81096.0,81091.0,0.098654]
[1731295690821,0.023,81096.0,81091.0,0.096554]
[1731295691225,0.098655,81091.0,81084.0,0.098662]
[1731295691436,0.023,81089.0,81075.0,0.0771]
[1731295691630,0.023,81083.0,81070.0,0.0494]
[1731295691875,0.023,81081.0,81070.0,0.246759]
[1731295692073,0.121666,81081.0,81075.0,0.098673]
[1731295692275,0.023,81082.0,81072.0,0.197355]
[1731295692479,0.023,81082.0,81076.0,0.098672]
[1731295692712,0.023,81086.0,81072.0,0.197355]
[1731295692876,0.023,81084.0,81080.0,0.098667]
[1731295694052,0.121677,81072.0,81061.0,0.0771]
[1731295694277,0.24761921,81072.0,81061.0,0.0771]
[1731295694630,0.24761921,81072.0,81062.0,0.098689]
[1731295694831,0.14894221,81072.0,81061.0,0.39476]
[1731295695042,0.24761921,81072.0,81065.0,0.098685]
[1731295695408,0.14894221,81072.0,81065.0,0.19737]
[1731295695789,0.14894221,81072.0,81067.0,0.098683]
[1731295695918,0.24761921,81072.0,81067.0,0.098683]
[1731295696724,0.14894221,81072.0,81067.0,0.098683]
[1731295696921,0.023,81079.0,81073.0,0.098676]
[1731295697258,0.098677,81072.0,81063.0,0.098688]
[1731295697459,0.121677,81072.0,81061.0,0.19738]
[1731295697662,0.121677,81072.0,81067.0,0.098683]
[1731295697876,0.121677,81072.0,81060.0,0.0494]
[1731295697877,0.098677,81072.0,81060.0,0.0494]
[1731295698076,0.24761921,81072.0,81060.0,0.0494]
[1731295699056,0.24761921,81072.0,81062.0,0.098689]
[1731295699258,0.24761921,81072.0,81064.0,0.098686]
[1731295699865,0.45163551,81072.0,81051.0,0.0454]
[1731295700064,0.66112451,81072.0,81050.0,0.001394]
[1731295700475,0.45710821,81072.0,81050.0,0.001394]
[1731295700892,0.46854887,81072.0,81050.0,0.001394]
[1731295701093,0.46854887,81072.0,81050.0,0.100098]
[1731295701457,0.38194887,81072.0,81052.0,0.197402]
[1731295701665,0.37050821,81072.0,81057.0,0.098694]
[1731295701849,0.37050821,81072.0,81056.0,0.144096]
[1731295702045,0.34761921,81072.0,81056.0,0.0454]
[1731295702595,0.34761921,81072.0,81061.0,0.0774]
[1731295703649,0.14894221,81072.0,81061.0,0.0774]
[1731295703852,0.14894221,81072.0,81053.0,0.18421521]
[1731295703853,0.007,81065.0,81046.0,0.197418]
[1731295704114,0.023,81064.0,81047.0,0.00246716]
[1731295704287,0.002,81062.0,81056.0,0.197392]
[1731295704458,0.023,81064.0,81057.0,0.197391]
[1731295704656,0.023,81064.0,81060.0,0.098691]
[1731295705063,0.023,81070.0,81062.0,0.098689]
[1731295705298,0.005,81065.0,81059.0,0.098692]
[1731295705484,0.023,81064.0,81059.0,0.098692]
[1731295706081,0.023,81068.0,81056.0,0.197392]
[1731295706287,0.023,81068.0,81058.0,0.098694]
[1731295706593,0.023,81068.0,81061.0,0.09869]
[1731295707005,0.023,81068.0,81063.0,0.098687]
[1731295707216,0.023,81070.0,81062.0,0.197378]
[1731295707373,0.023,81068.0,81061.0,0.0751]
[1731295707577,0.197367,81067.0,81058.0,0.098694]
[1731295707776,0.098688,81064.0,81057.0,0.098695]
[1731295708002,0.098688,81064.0,81057.0,0.093695]
[1731295708241,0.025,81061.0,81051.0,0.098703]
[1731295708439,0.023,81059.0,81048.0,0.098706]
[1731295708655,0.197387,81059.0,81046.0,0.098708]
[1731295708940,0.098703,81051.0,81045.0,0.098709]
[1731295709436,0.18421521,81058.0,81045.0,0.098709]
[1731295709437,0.0987,81053.0,81045.0,0.098709]
[1731295709657,0.002,81047.0,81043.0,0.0751]
[1731295710567,0.202396,81055.0,81043.0,0.0052838]
[1731295710568,0.18421521,81046.0,81043.0,0.0052838]
[1731295710940,0.197406,81051.0,81043.0,0.0052838]
[1731295711091,0.098706,81049.0,81043.0,0.0052838]
[1731295711292,0.45071079,81044.0,81043.0,0.0052838]
[1731295711669,0.39743779,81044.0,81043.0,0.0052838]
[1731295711858,0.25765321,81044.0,81043.0,0.0052838]
[1731295712292,0.25965321,81044.0,81043.0,0.0052838]
[1731295713121,0.25765321,81044.0,81043.0,0.0052838]
[1731295713722,0.25965321,81044.0,81043.0,0.0052838]
[1731295714545,0.25765321,81044.0,81043.0,0.0052838]
[1731295714744,0.131711,81044.0,81043.0,0.0052838]
[1731295715005,0.028,81044.0,81043.0,0.0052838]
[1731295715573,0.028,81044.0,81043.0,0.1039968]
[1731295715773,0.028,81044.0,81043.0,0.0052838]
[1731295715774,0.033,81044.0,81043.0,0.0052838]
[1731295716116,0.02504507,81044.0,81043.0,0.0052838]
[1731295716307,0.005,81044.0,81043.0,0.0052838]
[1731295717525,0.103711,81044.0,81043.0,0.0052838]
[1731295717726,0.105711,81044.0,81043.0,0.0052838]
[1731295718515,0.25965321,81044.0,81043.0,0.0052838]
[1731295718732,0.25265321,81044.0,81043.0,0.0052838]
[1731295718944,0.131711,81044.0,81043.0,0.0061258]
[1731295720040,0.25965321,81044.0,81043.0,0.0061258]
[1731295721372,0.25765321,81044.0,81043.0,0.0061258]
[1731295721734,0.028,81044.0,81043.0,0.0061258]
[1731295721929,0.126711,81044.0,81043.0,0.0061258]
[1731295723717,0.25465321,81044.0,81043.0,0.0061258]
[1731295725714,0.25265321,81044.0,81043.0,0.0061258]
[1731295726341,0.25465321,81044.0,81043.0,0.0061258]
[1731295727734,0.25265321,81044.0,81043.0,0.0061258]
[1731295728497,0.25465321,81044.0,81043.0,0.0061258]
[1731295730428,0.25965321,81044.0,81043.0,0.0061258]
[1731295730636,0.25933721,81044.0,81043.0,0.0061258]
[1731295731460,0.52872179,81044.0,81043.0,0.0061258]
[1731295731686,0.63372179,81044.0,81043.0,0.0061258]
[1731295731886,0.49393721,81044.0,81043.0,0.0061258]
[1731295732206,0.50538092,81044.0,81043.0,0.0061258]
[1731295732844,0.49393721,81044.0,81043.0,0.0061258]
[1731295733041,0.50537979,81044.0,81043.0,0.0061258]
[1731295733186,0.631322,81044.0,81043.0,0.0061258]
[1731295733381,0.50537979,81044.0,81043.0,0.0061258]
[1731295733587,0.54537979,81044.0,81043.0,0.0061258]
[1731295736514,0.54538454,81044.0,81043.0,0.0061258]
[1731295736934,0.5453845,81044.0,81043.0,0.0061258]
[1731295742412,0.5503845,81044.0,81043.0,0.0061258]
[1731295742611,0.67632671,81044.0,81043.0,0.0061258]
[1731295743158,0.5503845,81044.0,81043.0,0.0061258]
[1731295744104,0.5453845,81044.0,81043.0,0.0061258]
[1731295744317,0.5403845,81044.0,81043.0,0.0061258]
[1731295744522,0.5453845,81044.0,81043.0,0.0061258]
[1731295745123,0.5453845,81044.0,81043.0,0.0011258]
[1731295745575,0.58196358,81044.0,81043.0,0.0011258]
[1731295745735,0.44936358,81044.0,81043.0,0.0011258]
[1731295746148,0.43791629,81044.0,81043.0,0.0011258]
[1731295746322,0.4493646,81044.0,81043.0,0.0011258]
[1731295747008,0.41278552,81044.0,81043.0,0.0011258]
[1731295749618,0.41884851,81044.0,81043.0,0.0011258]
[1731295749820,0.43030174,81044.0,81043.0,0.0011258]
[1731295750007,0.41279044,81044.0,81043.0,0.0011258]
[1731295750981,0.40133721,81044.0,81043.0,0.0011258]
[1731295751143,0.41278631,81044.0,81043.0,0.0011258]
[1731295753544,0.41778631,81044.0,81043.0,0.0011258]
[1731295755298,0.45436165,81044.0,81043.0,0.0011258]
[1731295756558,0.41778631,81044.0,81043.0,0.0011258]
[1731295757020,0.41779489,81044.0,81043.0,0.0011258]
[1731295758720,0.4726579,81044.0,81043.0,0.0011258]
[1731295759585,0.6043579,81044.0,81043.0,0.0011258]
[1731295759788,0.5993579,81044.0,81043.0,0.0011258]
[1731295760121,0.60442163,81044.0,81043.0,0.0011258]
[1731295760835,0.6731967,81044.0,81043.0,0.0011258]
[1731295761068,0.68465755,81044.0,81043.0,0.0011258]
[1731295761287,0.81059976,81044.0,81043.0,0.0011258]
[1731295762166,0.81059976,81044.0,81023.0,8e-05]
[1731295762167,0.27352058,81024.0,81023.0,8e-05]
[1731295762393,0.49946279,81024.0,81023.0,8e-05]
[1731295762851,0.51092183,81024.0,81023.0,8e-05]
[1731295763503,0.49946279,81024.0,81023.0,8e-05]
[1731295764877,0.58156279,81024.0,81023.0,8e-05]
[1731295765314,0.49946279,81024.0,81023.0,8e-05]
[1731295766042,0.49746279,81024.0,81023.0,8e-05]
[1731295766252,0.35767821,81024.0,81023.0,8e-05]
[1731295766452,0.25894221,81024.0,81023.0,8e-05]
[1731295766659,0.35967821,81024.0,81023.0,8e-05]
[1731295767382,0.35767821,81024.0,81023.0,8e-05]
[1731295768385,0.35967821,81024.0,81023.0,8e-05]
[1731295774383,0.35967821,81024.0,81000.0,0.00046]
[1731295774384,0.005,81003.0,81000.0,0.00046]
[1731295774593,0.210764,81001.0,81000.0,0.00046]
[1731295775014,0.105,81001.0,81000.0,0.00046]
[1731295775230,0.210764,81001.0,81000.0,0.00046]
[1731295775671,0.1,81003.0,81000.0,0.00046]
[1731295775874,0.1,81003.0,81000.0,0.08146]
[1731295776113,0.005,81005.0,81000.0,0.08146]
[1731295776322,0.005,81005.0,81000.0,0.180225]
[1731295776590,0.005,81004.0,81000.0,0.08146]
[1731295776756,0.18421521,81002.0,81000.0,0.08146]
[1731295776954,0.005,81004.0,81000.0,0.08146]
[1731295777423,0.098762,81003.0,81000.0,0.08146]
[1731295778051,0.098763,81002.0,81000.0,0.08146]
[1731295779290,0.005,81004.0,81000.0,0.08146]
[1731295779426,0.103761,81004.0,81000.0,0.08146]
[1731295779813,0.098761,81003.0,81000.0,0.08146]
[1731295780050,0.005,81005.0,81000.0,0.08146]
[1731295780250,0.098761,81003.0,81000.0,0.08146]
[1731295780890,0.005,81004.0,81000.0,0.08146]
[1731295781127,0.10376,81005.0,81000.0,0.08146]
[1731295781540,0.10376,81004.0,81000.0,0.08146]
[1731295781751,0.09876,81004.0,81000.0,0.08146]
[1731295781962,0.108759,81005.0,81000.0,0.08146]
[1731295782176,0.005,81004.0,81000.0,0.08146]
[1731295782389,0.10376,81004.0,81000.0,0.08146]
[1731295783423,0.098762,81003.0,81000.0,0.08146]
[1731295783630,0.005,81004.0,81000.0,0.08146]
[1731295783841,0.10376,81004.0,81000.0,0.08146]
[1731295784046,0.098761,81003.0,81000.0,0.08146]
[1731295784249,0.098764,81001.0,81000.0,0.00046]
[1731295784464,0.098762,81003.0,81000.0,0.00046]
[1731295784673,0.005,81004.0,81000.0,0.00046]
[1731295784969,0.005,81003.0,81000.0,0.00046]
[1731295785338,0.29497921,81001.0,81000.0,0.00046]
[1731295785549,0.110764,81001.0,81000.0,0.00046]
[1731295785996,0.210764,81001.0,81000.0,0.00046]
[1731295786231,0.208764,81001.0,81000.0,0.00046]
[1731295786443,0.210764,81001.0,81000.0,0.00046]
[1731295786666,0.208764,81001.0,81000.0,0.00046]
[1731295787291,0.208764,81001.0,80982.0,0.197572]
[1731295787292,0.52092142,81001.0,80960.0,0.0553113]
[1731295787539,0.0254745,80980.0,80979.0,0.098791]
[1731295790579,0.0254745,80980.0,80979.0,0.223591]
[1731295790920,0.0254745,80980.0,80979.0,0.218591]
[1731295794818,0.0254745,80980.0,80979.0,0.203591]
[1731295796895,0.0254745,80980.0,80978.0,0.00620492]
[1731295797269,0.098791,80979.0,80978.0,0.00620492]
[1731295798552,0.1029745,80980.0,80978.0,0.00620492]
[1731295798756,0.0254745,80980.0,80978.0,0.10499592]
[1731295799008,0.0254745,80980.0,80979.0,0.098791]
[1731295799402,0.0254745,80980.0,80978.0,0.00120492]
[1731295799637,0.0254745,80980.0,80977.0,0.098792]
[1731295799815,0.0254745,80980.0,80950.0,0.0162438]
[1731295800027,0.0254745,80980.0,80978.0,0.098792]
[1731295800816,0.0254745,80980.0,80976.0,0.098794]
[1731295801072,0.0254745,80980.0,80979.0,0.000842]
[1731295801213,0.0254745,80980.0,80979.0,0.099633]
[1731295803334,0.0254745,80980.0,80979.0,0.000842]
[1731295804706,0.1242635,80980.0,80979.0,0.000842]
[1731295805278,0.3047723,80978.0,80975.0,0.098795]
[1731295805526,0.44292515,80978.0,80969.0,0.197605]
[1731295805761,0.44292515,80978.0,80976.0,0.098794]
[1731295805953,0.44292515,80978.0,80966.0,0.197613]
[1731295806084,0.44292515,80978.0,80976.0,0.098793]
[1731295806724,0.44292515,80978.0,80965.0,0.2085575]
[1731295806900,0.44292515,80978.0,80975.0,0.098795]
[1731295807108,0.44292515,80978.0,80940.0,0.049391]
[1731295807311,0.44292515,80978.0,80977.0,0.098793]
[1731295807510,0.44292515,80978.0,80972.0,0.197597]
[1731295807758,0.44292515,80978.0,80976.0,0.098794]
[1731295808420,0.44292515,80978.0,80974.0,0.098796]
[1731295808623,0.44292515,80978.0,80972.0,0.098798]
[1731295808836,0.0794,80977.0,80970.0,0.197603]
[1731295809041,0.0794,80977.0,80976.0,0.098794]
[1731295809702,0.44292515,80978.0,80977.0,0.098793]
[1731295809924,0.44292515,80978.0,80977.0,0.10126258]
[1731295810153,0.44292515,80978.0,80977.0,0.098793]
[1731295815128,0.44292515,80978.0,80977.0,0.10126256]
[1731295815387,0.44292515,80978.0,80977.0,0.35129783]
[1731295815605,0.44292515,80978.0,80977.0,0.34783521]
[1731295816265,0.44292515,80978.0,80977.0,0.38629148]
[1731295816477,0.44292515,80978.0,80977.0,0.4897541]
[1731295816735,0.0271605,80980.0,80977.0,0.4897541]
[1731295816736,0.18421521,80992.0,80991.0,0.21718458]
[1731295816947,0.18421521,80992.0,80991.0,0.48760279]
[1731295817432,0.18421521,81001.0,80991.0,0.48760279]
[1731295817433,0.18421521,81001.0,81000.0,0.098765]
[1731295817650,0.18421521,80992.0,80991.0,0.098776]
[1731295817862,0.18421521,81001.0,80988.0,0.197559]
[1731295818093,0.18421521,81001.0,80990.0,0.098777]
[1731295818094,0.28298021,81001.0,80990.0,0.098777]
[1731295818518,0.18421521,80992.0,80982.0,0.197574]
[1731295818762,0.028,80994.0,80978.0,0.098791]
[1731295818977,0.098778,80989.0,80978.0,0.098791]
[1731295819213,0.098776,80991.0,80977.0,0.197586]
[1731295819445,0.18621521,80992.0,80981.0,0.098787]
[1731295819655,0.28499021,80992.0,80981.0,0.098787]
[1731295819866,0.18621521,80992.0,80981.0,0.098787]
[1731295820079,0.023,80995.0,80977.0,0.197586]
[1731295820297,0.18421521,80992.0,80981.0,0.098788]
[1731295820517,0.18421521,80992.0,80978.0,0.12594221]
[1731295820728,0.18421521,80992.0,80989.0,0.098778]
[1731295821127,0.005,80996.0,80989.0,0.098778]
[1731295821369,0.005,80996.0,80990.0,0.098777]
[1731295821883,0.005,80996.0,80991.0,0.098775]
[1731295822101,0.18421521,80994.0,80987.0,0.197561]
[1731295822323,0.18421521,80994.0,80984.0,0.197569]
[1731295822324,0.005,80996.0,80990.0,0.098776]
[1731295822528,0.005,80996.0,80994.0,0.098771]
[1731295822736,0.005,80996.0,80994.0,0.10124003]
[1731295822942,0.005,80996.0,80988.0,0.197558]
[1731295823248,0.005,80996.0,80992.0,0.098774]
[1731295823337,0.005,80996.0,80985.0,0.197567]
[1731295823543,0.1,81002.0,80985.0,0.197567]
[1731295823544,0.005,80998.0,80997.0,0.098768]
[1731295823794,0.005,80996.0,80989.0,0.197555]
[1731295824033,0.005,80996.0,80986.0,0.12594221]
[1731295824256,0.005,80996.0,80988.0,0.19756]
[1731295824488,0.005,80996.0,80989.0,0.197557]
[1731295824690,0.005,80996.0,80992.0,0.098775]
[1731295824907,0.005,80996.0,80974.0,0.13978458]
[1731295825123,0.005,80996.0,80986.0,0.01072578]
[1731295825338,0.001686,80991.0,80990.0,0.098777]
[1731295825594,0.001686,80991.0,80990.0,0.36450379]
[1731295825841,0.001686,80991.0,80990.0,0.22471921]
[1731295827575,0.001686,80991.0,80990.0,0.4504327]
[1731295828243,0.001686,80991.0,80990.0,0.5504327]
[1731295828459,0.001686,80991.0,80990.0,0.5870922]
[1731295828711,0.001686,80991.0,80990.0,0.6380694]
[1731295829511,0.18421521,81012.0,80990.0,0.6380694]
[1731295829512,0.18421521,81012.0,80991.0,0.1]
[1731295829829,0.18421521,81012.0,81011.0,0.23853658]
[1731295830403,0.18421521,81023.0,81022.0,0.098738]
[1731295831018,0.0874,81033.0,81032.0,0.098726]
[1731295831425,0.01766349,81043.0,81032.0,0.13978458]
[1731295831426,0.083684,81043.0,81032.0,0.13978458]
[1731295831622,0.18421521,81035.0,81026.0,0.13978458]
[1731295831847,0.088684,81043.0,81037.0,0.098719]
[1731295832226,0.090684,81043.0,81037.0,0.098719]
[1731295832436,0.088684,81043.0,81027.0,0.12594221]
[1731295832605,0.088684,81043.0,81035.0,0.197444]
[1731295832816,0.111684,81043.0,81035.0,0.197444]
[1731295832980,0.111684,81043.0,81028.0,0.197462]
[1731295833178,0.210398,81043.0,81029.0,0.12594221]
[1731295833381,0.26789921,81043.0,81040.0,0.197431]
[1731295833609,0.26789921,81043.0,81032.0,0.197452]
[1731295833610,0.27289921,81043.0,81032.0,0.197452]
[1731295833804,0.098715,81041.0,81034.0,0.098723]
[1731295834008,0.098715,81041.0,81013.0,0.1]
[1731295834009,0.098717,81040.0,81013.0,0.1]
[1731295834220,0.121718,81039.0,81031.0,0.098726]
[1731295834428,0.123719,81039.0,81015.0,0.1]
[1731295834635,0.121719,81039.0,81032.0,0.098725]
[1731295834846,0.023,81039.0,81033.0,0.098725]
[1731295835070,0.023,81039.0,81034.0,0.098723]
[1731295835280,0.023,81040.0,81034.0,0.098723]
[1731295835494,0.006684,81043.0,81042.0,0.098714]
[1731295835699,0.001684,81043.0,81042.0,0.098714]
[1731295836736,0.001684,81043.0,81040.0,0.0019409]
[1731295836937,0.121715,81041.0,81040.0,0.0019409]
[1731295837107,0.123715,81041.0,81040.0,0.0019409]
[1731295838872,0.121715,81041.0,81040.0,0.0019409]
[1731295839301,0.123715,81041.0,81040.0,0.0019409]
[1731295839485,0.023,81041.0,81040.0,0.0019409]
[1731295839702,0.023,81042.0,81040.0,0.0019409]
[1731295839869,0.121714,81042.0,81040.0,0.0019409]